fUST/lending_fUST_20260212
["ID","MTS","AMOUNT","RATE_DAILY","PERIOD"]
[405201791,1770900981046,500.0,0.00013699,2]
[405201792,1770900981111,1000.0,0.00014247,2]
[405201793,1770900981164,500.0,0.00014795,2]
[405201809,1770900989045,503.37220716,0.00013699,2]
[405201810,1770900990321,500.02136619,0.00013699,2]
[405201811,1770900991788,1000.0,0.00014247,2]
[405201812,1770900991820,500.0,0.00013699,2]
[405201813,1770900991878,694.54617722,0.00014795,2]
[405201814,1770900993064,500.95725968,0.00013699,2]
[405201815,1770900993190,500.0,0.00013699,2]
[405201816,1770901001149,500.0,0.00013699,2]
[405201820,1770901024962,500.0,0.00013699,2]
[405201821,1770901025026,1000.0,0.00014247,2]
[405201822,1770901026132,1001.10016724,0.00014247,2]
[405201823,1770901026188,500.0,0.00013699,2]
[405201824,1770901029950,500.0,0.00013699,2]
[405201825,1770901030010,1000.0,0.00014795,2]
[405201826,1770901030071,1000.0,0.00014247,2]
[405201827,1770901030480,500.0,0.00013699,2]
[405201828,1770901030506,1000.0,0.00014247,2]
[405201829,1770901030539,501.60736317,0.00013699,2]
[405201830,1770901030565,1007.60343019,0.00014795,2]
[405201831,1770901034893,500.0,0.00013699,2]
[405201832,1770901034923,557.75835328,0.00014247,2]
[405201833,1770901035083,500.0,0.00013699,2]
[405201834,1770901035134,1000.0,0.00014247,2]
[405201835,1770901035190,500.0,0.00014795,2]
[405201852,1770901103285,170.6045,0.00015811,2]
[405201891,1770901207568,150.0,0.00013673,2]
[405201892,1770901207625,351.91560759,0.00014221,2]
[405201893,1770901208041,500.0,0.00013699,2]
[405201894,1770901208085,500.21390696,0.00014247,2]
[405201895,1770901214984,533.93481128,0.00013273,2]
[405201896,1770901216639,500.0,0.00013273,2]
[405201897,1770901217358,479.24822683,0.00013273,2]
[405201898,1770901218876,500.0,0.00013273,2]
[405201899,1770901219044,500.0,0.00013699,2]
[405201900,1770901219099,1000.0,0.00014247,2]
[405201901,1770901219155,1188.00308597,0.00014795,2]
[405201902,1770901223311,615.75647517,0.00013699,2]
[405201903,1770901224653,500.0,0.00013699,2]
[405201904,1770901224705,500.0,0.00014247,2]
[405201909,1770901257062,5000.0,0.0002352,2]
[405201920,1770901267140,500.0,0.00013699,2]
[405201921,1770901267196,1000.0,0.00014247,2]
[405201922,1770901267252,482.23150023,0.00014795,2]
[405201923,1770901284785,500.67614391,0.00013699,2]
[405201924,1770901288135,500.0,0.00013699,2]
[405201925,1770901288162,933.98120373,0.00014247,2]
[405201926,1770901290028,250.0,0.00018356,2]
[405201927,1770901290052,602.31124987,0.00021096,2]
[405201928,1770901290076,450.0,0.00019452,2]
[405201929,1770901290126,150.0,0.00017808,2]
[405201930,1770901290154,350.0,0.00018904,2]
[405201931,1770901290189,550.0,0.0002,2]
[405201932,1770901290241,650.0,0.00020548,2]
[405201933,1770901290897,500.69853738,0.00013273,2]
[405201934,1770901291126,305.59076975,0.00013699,2]
[405201935,1770901291154,500.0,0.00013699,2]
[405201936,1770901291194,1000.0,0.00014247,2]
[405201937,1770901291251,1500.0,0.00014795,2]
[405201938,1770901291291,500.0,0.00013699,2]
[405201939,1770901291319,501.07170171,0.00013699,2]
[405201940,1770901291347,1004.2102287,0.00014247,2]
[405201941,1770901291593,500.0,0.00013699,2]
[405201942,1770901292612,500.44451118,0.00013699,2]
[405201943,1770901294356,503.5611436,0.00013699,2]
[405201944,1770901294572,500.0,0.00013699,2]
[405201945,1770901315731,5000.0,0.0002352,2]
[405201946,1770901319164,-300.0,0.0002358,2]
[405201947,1770901319192,-500.0,0.00023581,2]
[405201948,1770901319220,-417.68557264,0.00023581,2]
[405201949,1770901319233,-82.31442736,0.00023581,2]
[405201950,1770901319243,-217.68557264,0.00023581,2]
[405201951,1770901319258,-282.31442736,0.00023581,2]
[405201952,1770901319268,-217.68557264,0.00023581,2]
[405201953,1770901319279,-282.31442736,0.00023581,2]
[405201954,1770901319289,-217.68557264,0.00023581,2]
[405201961,1770901444033,500.0,0.00013699,2]
[405201962,1770901444075,1000.0,0.00014247,2]
[405201963,1770901444112,1177.05502283,0.00014795,2]
[405201966,1770901503585,500.0,0.00013699,2]
[405201967,1770901503644,501.88334541,0.00014247,2]
[405201968,1770901503726,500.0,0.00013699,2]
[405201969,1770901503786,1000.0,0.00014247,2]
[405201970,1770901511330,500.0,0.00013273,2]
[405201971,1770901511383,1000.0,0.00013821,2]
[405201972,1770901511449,500.0,0.00014368,2]
[405201973,1770901522425,500.0,0.00013273,2]
[405201977,1770901567083,500.0,0.00013699,2]
[405201978,1770901567152,1000.0,0.00014247,2]
[405201979,1770901567201,466.06241182,0.00014795,2]
[405201980,1770901568614,500.0,0.00013699,2]
[405201981,1770901568674,1000.0,0.00014247,2]
[405201982,1770901568725,1135.31740418,0.00014795,2]
[405201983,1770901570975,150.09207651,0.00016438,2]
[405201984,1770901571601,500.0,0.00013699,2]
[405201985,1770901571650,500.0,0.00014247,2]
[405201986,1770901573526,1000.0,0.00013821,2]
[405201987,1770901573560,510.1221428,0.00014368,2]
[405201988,1770901573637,500.0,0.00013273,2]
[405201989,1770901575265,500.0,0.00013273,2]
[405201990,1770901575334,1000.0,0.00013821,2]
[405201991,1770901575384,1002.56390162,0.00014368,2]
[405201992,1770901576732,500.0,0.00013699,2]
[405201993,1770901576772,333.98969801,0.00014247,2]
[405201994,1770901581396,500.0,0.00013699,2]
[405201995,1770901581436,1000.0,0.00014247,2]
[405201996,1770901581498,505.505616,0.00014795,2]
[405201997,1770901583294,500.0,0.00013273,2]
[405201998,1770901583347,1000.0,0.00013821,2]
[405201999,1770901583420,1000.0,0.00014368,2]
[405202000,1770901593366,158.52246881,0.00013699,2]
[405202001,1770901593482,500.0,0.00013273,2]
[405202002,1770901593532,1000.0,0.00013821,2]
[405202003,1770901593584,1003.62328595,0.00014368,2]
[405202004,1770901595949,500.0,0.00013699,2]
[405202005,1770901596008,947.98893381,0.00014247,2]
[405202019,1770901684476,500.0,0.00013699,2]
[405202020,1770901684521,1000.0,0.00014247,2]
[405202021,1770901684568,500.0,0.00014795,2]
[405202022,1770901705857,5000.0,0.0002352,2]
[405202023,1770901713614,440.88011238,0.0002352,2]
[405202027,1770901730664,5000.0,0.0002352,2]
[405202028,1770901750432,911.80324625,0.0002348,2]
[405202029,1770901752675,4396.92500407,0.0002352,2]
[405202030,1770901759326,9727.3108502,0.00022762,2]
[405202031,1770901781105,183.59260003,0.00023185,2]
[405202033,1770901804145,502.56003983,0.00013273,2]
[405202084,1770901838015,-618.52,0.00023571,10]
[405202085,1770901838024,-790.0,0.00023575,2]
[405202086,1770901838034,-281.73537576,0.00023575,2]
[405202087,1770901838044,-300.0,0.00023579,2]
[405202088,1770901838053,-1174.0,0.00023579,2]
[405202089,1770901838062,-229.64351423,0.0002358,2]
[405202090,1770901838072,-500.0,0.0002358,2]
[405202091,1770901838082,-500.0,0.0002358,2]
[405202092,1770901838091,-471.56738621,0.0002358,2]
[405202115,1770901845045,-28.43261379,0.0002358,2]
[405202116,1770901845055,-324.90727445,0.0002358,2]
[405202124,1770901850821,-175.09272555,0.0002358,2]
[405202125,1770901850846,-419.60462242,0.0002358,2]
[405202136,1770901864215,500.18513136,0.00013699,2]
[405202137,1770901873473,220.6755411,0.00013699,2]
[405202138,1770901890584,500.0,0.00013699,2]
[405202139,1770901890622,771.18782491,0.00014247,2]
[405202140,1770901891428,500.0,0.00013273,2]
[405202141,1770901891475,1000.0,0.00013821,2]
[405202142,1770901891526,1500.0,0.00014368,2]
[405202143,1770901891576,702.57278017,0.00014916,2]
[405202148,1770902104204,462.39629658,0.00013699,2]
[405202150,1770902113469,1004.25649035,0.00013821,2]
[405202151,1770902113534,500.0,0.00013273,2]
[405202152,1770902165888,504.28157413,0.00013699,2]
[405202153,1770902166070,250.0,0.00014247,2]
[405202154,1770902166101,150.0,0.00013699,2]
[405202155,1770902166127,200.2056735,0.00014795,2]
[405202156,1770902167089,500.0,0.00013699,2]
[405202157,1770902167124,700.53173319,0.00014247,2]
[405202159,1770902172534,500.0,0.00013699,2]
[405202160,1770902172585,864.11352414,0.00014247,2]
[405202161,1770902178323,1008.36255385,0.00023288,2]
[405202162,1770902178356,500.0,0.00021918,2]
[405202174,1770902189709,1000.0,0.00014247,2]
[405202175,1770902189772,500.0,0.00013699,2]
[405202176,1770902189812,329.8043761,0.00014795,2]
[405202179,1770902195815,500.0,0.00013699,2]
[405202180,1770902195869,1001.74794287,0.00014247,2]
[405202197,1770902464351,500.0,0.00013273,2]
[405202198,1770902464385,1000.0,0.00013821,2]
[405202199,1770902464450,401.32607296,0.00014368,2]
[405202200,1770902465380,464.271838,0.00013273,2]
[405202201,1770902465868,500.0,0.00013699,2]
[405202202,1770902465899,247.52527105,0.00014247,2]
[405202203,1770902465983,500.0,0.00013273,2]
[405202204,1770902466017,1000.0,0.00013821,2]
[405202205,1770902466078,1000.0,0.00014368,2]
[405202365,1770902703153,500.0,0.00013273,2]
[405202366,1770902703196,1001.76185865,0.00013821,2]
[405202371,1770902779804,500.0,0.00013699,2]
[405202372,1770902779833,358.25575345,0.00014247,2]
[405202373,1770902787986,503.13063771,0.00014247,2]
[405202374,1770902788126,500.0,0.00013699,2]
[405202380,1770902889873,507.0620827,0.000234,21]
[405202527,1770903038108,-790.0,0.00023567,2]
[405202528,1770903038118,-296.97537576,0.00023567,2]
[405202529,1770903038128,-300.0,0.00023568,2]
[405202530,1770903038138,-300.0,0.00023568,2]
[405202531,1770903038147,-252.0,0.00023568,2]
[405202532,1770903038157,-300.0,0.00023568,2]
[405202533,1770903038166,-1174.0,0.00023568,2]
[405202534,1770903038175,-155.0,0.00023577,2]
[405202535,1770903038185,-500.0,0.00023578,2]
[405202536,1770903038194,-500.0,0.00023578,2]
[405202538,1770903038204,-50000.0,0.00023579,2]
[405202540,1770903038213,-424.1970177,0.00023581,2]
[405202542,1770903038222,-216.47936103,0.00023581,2]
[405202544,1770903038231,-734.37040013,0.00023581,2]
[405202546,1770903038241,-500.0,0.00023581,2]
[405202547,1770903038251,-500.0,0.00023581,2]
[405202548,1770903038261,-500.0,0.00023581,2]
[405202549,1770903038271,-500.0,0.00023581,2]
[405202550,1770903038281,-500.0,0.00023581,2]
[405202551,1770903038290,-500.0,0.00023581,2]
[405202552,1770903038300,-500.0,0.00023581,2]
[405202553,1770903038310,-150.97797158,0.00023581,2]
[405202554,1770903038319,-525.0,0.000236,2]
[405202555,1770903038329,-1080.71506497,0.00023921,3]
[405202556,1770903038339,-1900.0,0.00024,2]
[405202557,1770903038348,-600.0,0.00024051,10]
[405202558,1770903038359,-1652.3334003,0.00024413,2]
[405202559,1770903038369,-168.0,0.00024431,2]
[405202560,1770903038379,-168.0,0.00024469,2]
[405202561,1770903038389,-763.55463186,0.00024644,2]
[405202562,1770903038398,-389.66284985,0.00024726,2]
[405202563,1770903038408,-10161.40104263,0.000249,2]
[405202564,1770903038424,-1715.04256547,0.000249,2]
[405202565,1770903038434,-11876.4436081,0.0002499,2]
[405202566,1770903038444,-2039.0,0.00025,3]
[405202567,1770903038454,-805.37632526,0.00025,15]
[405202568,1770903038464,-1427.1,0.0002504,10]
[405202569,1770903038474,-23486.24445707,0.0002505,2]
[405202570,1770903038484,-150.0,0.00025056,2]
[405202571,1770903038493,-168.0,0.00025074,2]
[405202572,1770903038503,-528.498367,0.0002509,2]
[405202573,1770903038512,-168.0,0.00025213,2]
[405202574,1770903038522,-2131.40144478,0.00025433,3]
[405202575,1770903038531,-168.0,0.00025454,2]
[405202576,1770903038542,-350.4309434,0.00025567,2]
[405202577,1770903038551,-420.0,0.00025569,2]
[405202578,1770903038560,-11876.4436081,0.00025683,2]
[405202579,1770903038570,-1374.0,0.00025693,2]
[405202580,1770903038714,-633.0,0.00025693,2]
[405202581,1770903038733,-2166.0,0.00025693,2]
[405202582,1770903038744,-722.0,0.00025693,2]
[405202583,1770903038755,-423.0,0.00025693,2]
[405202584,1770903038766,-4981.67,0.000257,2]
[405202585,1770903038777,-168.0,0.00025731,2]
[405202586,1770903038789,-161.0,0.00026,5]
[405202587,1770903038799,-2937.48160053,0.00026146,2]
[405202588,1770903038809,-528.498367,0.00026146,2]
[405202589,1770903038818,-250.0,0.00026203,2]
[405202590,1770903038828,-250.0,0.00026203,2]
[405202591,1770903038838,-250.0,0.00026203,2]
[405202592,1770903038848,-500.0,0.00026203,2]
[405202593,1770903038860,-250.0,0.00026203,2]
[405202594,1770903038870,-250.0,0.00026203,2]
[405202595,1770903038880,-250.0,0.00026203,2]
[405202596,1770903038889,-250.0,0.00026203,2]
[405202597,1770903038899,-250.0,0.00026203,2]
[405202598,1770903038909,-250.0,0.00026203,2]
[405202599,1770903038919,-500.0,0.00026203,2]
[405202600,1770903038929,-250.0,0.00026203,2]
[405202601,1770903038939,-311.86690858,0.00026203,2]
[405202602,1770903038949,-500.0,0.00026203,2]
[405202603,1770903038959,-250.0,0.00026203,2]
[405202604,1770903038969,-500.0,0.00026203,2]
[405202605,1770903038980,-500.0,0.00026203,2]
[405202606,1770903038990,-500.0,0.00026203,2]
[405202607,1770903039000,-500.0,0.00026203,2]
[405202608,1770903039010,-500.0,0.00026203,2]
[405202609,1770903039020,-500.0,0.00026203,2]
[405202610,1770903039030,-500.0,0.00026203,2]
[405202611,1770903039040,-498.65652937,0.00026203,2]
[405202612,1770903039049,-1357.43045664,0.0002645,2]
[405202613,1770903039059,-720.0,0.00026456,30]
[405202614,1770903039068,-692.73395528,0.00026532,2]
[405202615,1770903039078,-658.84,0.000266,14]
[405202616,1770903039088,-1330.38868948,0.00026842,2]
[405202617,1770903039098,-528.498367,0.00027202,2]
[405202618,1770903039108,-3182.08782459,0.00027281,3]
[405202619,1770903039119,-652.55,0.00027397,2]
[405202620,1770903039128,-652.55,0.00027397,2]
[405202621,1770903039138,-652.55,0.00027397,2]
[405202622,1770903039147,-652.55,0.00027397,2]
[405202623,1770903039156,-652.55,0.00027397,2]
[405202624,1770903039166,-652.55,0.00027397,2]
[405202625,1770903039176,-652.55,0.00027397,2]
[405202626,1770903039186,-652.55,0.00027397,2]
[405202627,1770903039195,-652.55,0.00027397,2]
[405202628,1770903039205,-652.55,0.00027397,2]
[405202629,1770903039214,-652.55,0.00027397,2]
[405202630,1770903039223,-500.0,0.00027397,2]
[405202631,1770903039233,-150.0,0.00027397,5]
[405202632,1770903039243,-403.88651104,0.00027567,2]
[405202633,1770903039252,-231.49892871,0.00027703,2]
[405202634,1770903039262,-587.0,0.00027741,2]
[405202635,1770903039272,-250.0,0.00027945,5]
[405202636,1770903039281,-62206.4504986,0.00028,30]
[405202643,1770903040168,-24190.01635108,0.00028,30]
[405202644,1770903040226,-336.10185248,0.00028,30]
[405202645,1770903040238,-3397.15620451,0.00028,30]
[405202646,1770903040247,-150.0,0.00028056,2]
[405202647,1770903040256,-528.498367,0.00028259,2]
[405202648,1770903040266,-420.0,0.00028264,2]
[405202649,1770903040275,-350.0,0.00028493,5]
[405202650,1770903040284,-652.55,0.00028692,2]
[405202651,1770903040293,-626.0,0.00028693,2]
[405202652,1770903040303,-720.0,0.00028693,2]
[405202653,1770903040312,-421.0,0.00028693,2]
[405202654,1770903040321,-4981.67,0.000287,2]
[405202655,1770903040330,-450.0,0.00029041,5]
[405202656,1770903040339,-11876.4436081,0.00029094,2]
[405202657,1770903040350,-864.0,0.00029102,30]
[405202658,1770903040360,-4232.7742044,0.00029128,3]
[405202659,1770903040369,-528.498367,0.00029315,2]
[405202660,1770903040378,-304.0,0.00029387,2]
[405202661,1770903040387,-250.0,0.0002939,2]
[405202662,1770903040397,-658.84,0.000295,14]
[405202663,1770903040406,-457.34207867,0.00029567,2]
[405202664,1770903040415,-550.0,0.00029589,5]
[405202665,1770903040426,-373.0,0.00029699,2]
[405202666,1770903040435,-484.16165206,0.000299,12]
[405202667,1770903040445,-11876.4436081,0.0002998,2]
[405202668,1770903040455,-55885.02708675,0.0002999,2]
[405202669,1770903040467,-11505.78672425,0.0002999,2]
[405202670,1770903040476,-2526.07470481,0.0003,3]
[405202671,1770903040485,-1043.14413997,0.0003,30]
[405202672,1770903040516,-3e-08,0.0003,30]
[405202687,1770903044809,-4903.9550138,0.0003,30]
[405202695,1770903079693,878.15656019,0.00023478,2]
[405202697,1770903120782,-163.64737553,0.00023578,2]
[405202698,1770903120813,-500.0,0.00023578,2]
[405202699,1770903120842,-443.21679521,0.00023578,2]
[405202700,1770903120870,-500.0,0.00023578,2]
[405202701,1770903120900,-150.83037454,0.00023578,2]
[405202702,1770903150079,-500.0,0.00023576,2]
[405202705,1770903222087,6261.3122333,0.00022696,2]
[405202708,1770903245970,1336.88,0.0002352,2]
[405202709,1770903252052,31315.2044184,0.00022578,2]
[405202755,1770903539047,10000.0,0.00022578,2]
[405202757,1770903545516,500.41639703,0.00013699,2]
[405202772,1770903594264,168.708608,0.00015803,2]
[405202773,1770903594486,168.708608,0.00016419,2]
[405202774,1770903594807,168.708608,0.00017035,2]
[405202775,1770903594944,168.708608,0.00017651,2]
[405202776,1770903595155,168.708608,0.00018266,2]
[405202777,1770903595463,168.708608,0.00018882,2]
[405202778,1770903595671,168.708608,0.00019498,2]
[405202779,1770903595891,168.708608,0.00020114,2]
[405202780,1770903596117,168.708608,0.00020729,2]
[405202781,1770903596309,168.708608,0.00021345,2]
[405202782,1770903596538,168.708608,0.00021961,2]
[405202783,1770903596767,168.708608,0.00022576,2]
[405202806,1770903642870,339.02,0.0002352,2]
[405202807,1770903669089,500.0,0.00013273,2]
[405202808,1770903669138,500.0,0.00013821,2]
[405202832,1770903917240,497.71092921,0.00013273,2]
[405202833,1770903917889,192.43499204,0.00013821,2]
[405202834,1770903917942,500.0,0.00013273,2]
[405202835,1770903919614,245.81439108,0.00017808,2]
[405202836,1770903921778,1000.0,0.00013821,2]
[405202837,1770903921850,500.0,0.00013273,2]
[405202838,1770903926187,500.0,0.00013699,2]
[405202839,1770903926257,1000.0,0.00014247,2]
[405202840,1770903931615,537.67604002,0.00013699,2]
[405202841,1770903971784,501.14363139,0.00013699,2]
[405202855,1770904027429,500.0,0.00013273,2]
[405202856,1770904027486,719.25374441,0.00013821,2]
[405202857,1770904028401,502.57549709,0.00013699,2]
[405202875,1770904147523,502.50133198,0.00013699,2]
[405202876,1770904197852,-1189.25,0.0002356,10]
[405202877,1770904197880,-991.04,0.0002356,10]
[405202878,1770904197907,-825.87,0.0002356,10]
[405202879,1770904197934,-300.0,0.00023569,2]
[405202880,1770904197963,-296.34951916,0.0002357,2]
[405202881,1770904197984,-1189.25,0.0002357,2]
[405202882,1770904197995,-991.04,0.0002357,2]
[405202883,1770904198007,-825.87,0.0002357,2]
[405202884,1770904198018,-300.0,0.0002357,2]
[405202885,1770904198030,-296.34951916,0.0002357,2]
[405202886,1770904198041,-17794.98096168,0.0002357,2]
[405202891,1770904221739,500.0,0.00013273,2]
[405202892,1770904221801,1003.07665345,0.00013821,2]
[405202893,1770904224493,503.34595574,0.00013699,2]
[405202894,1770904226435,502.5841117,0.00013699,2]
[405202947,1770904232373,-675.42364712,0.0002356,10]
[405202949,1770904232384,-12.79635288,0.0002356,10]
[405202951,1770904232394,-573.52,0.0002356,10]
[405202953,1770904232404,-187.4225822,0.00023569,2]
[405202955,1770904232414,-300.0,0.00023569,2]
[405202957,1770904232424,-277.0,0.00023569,2]
[405202959,1770904232433,-300.0,0.00023569,2]
[405202961,1770904232443,-292.0,0.00023569,2]
[405202963,1770904232452,-1136.49957385,0.00023569,2]
[405202965,1770904232463,-63.50042615,0.00023569,2]
[405202967,1770904232473,-2389.60048611,0.0002357,2]
[405203023,1770904238288,-4839.57793798,0.0002357,2]
[405203634,1770904245034,-5000.02729574,0.0002357,2]
[405204043,1770904253593,1486.12796067,0.0002352,2]
[405204044,1770904267631,500.0,0.00013273,2]
[405204045,1770904267683,226.31513533,0.00013821,2]
[405204046,1770904270637,500.0,0.00013699,2]
[405204047,1770904270681,480.24851661,0.00014247,2]
[405204048,1770904273378,303.10001603,0.000189,2]
[405204049,1770904273414,303.10001603,0.00019089,2]
[405204050,1770904273440,303.10001603,0.00019467,2]
[405204051,1770904273470,303.10001603,0.00019278,2]
[405204052,1770904273530,303.10001598,0.00019656,2]
[405204053,1770904281466,500.0,0.00013273,2]
[405204054,1770904297975,248.158096,0.00022576,2]
[405204055,1770904306475,-500.0,0.00023569,2]
[405204056,1770904306506,-500.0,0.00023569,2]
[405204057,1770904306534,-500.0,0.00023569,2]
[405204058,1770904306564,-500.0,0.00023569,2]
[405204059,1770904306592,-500.0,0.00023569,2]
[405204060,1770904306621,-500.0,0.00023569,2]
[405204061,1770904306651,-500.0,0.00023569,2]
[405204062,1770904306679,-500.0,0.00023569,2]
[405204063,1770904306707,-500.0,0.00023569,2]
[405204064,1770904306733,-500.0,0.00023569,2]
[405204065,1770904306759,-500.0,0.00023569,2]
[405204066,1770904306786,-500.0,0.00023569,2]
[405204067,1770904306813,-500.0,0.00023569,2]
[405204068,1770904306840,-500.0,0.00023569,2]
[405204069,1770904306868,-500.0,0.00023569,2]
[405204070,1770904306896,-500.0,0.00023569,2]
[405204071,1770904306923,-500.0,0.00023569,2]
[405204072,1770904306954,-500.0,0.00023569,2]
[405204073,1770904306983,-500.0,0.00023569,2]
[405204074,1770904307011,-500.0,0.00023569,2]
[405204075,1770904326928,500.0,0.00013273,2]
[405204076,1770904326987,512.17791009,0.00013821,2]
[405204077,1770904328807,500.0,0.00013273,2]
[405204078,1770904328860,1000.0,0.00013821,2]
[405204079,1770904329191,500.0,0.00013273,2]
[405204080,1770904329249,1007.7517915,0.00013821,2]
[405204081,1770904329278,500.0,0.00013273,2]
[405204082,1770904329310,505.42471884,0.00013821,2]
[405204083,1770904510905,501.04990917,0.00013699,2]
[405204085,1770904515340,428.61119807,0.00013699,2]
[405204086,1770904523006,500.88707288,0.00013699,2]
[405204087,1770904528316,500.0,0.00013699,2]
[405204088,1770904528367,1003.16455009,0.00014247,2]
[405204089,1770904539345,500.0,0.00013699,2]
[405204090,1770904539396,1001.3022856,0.00014247,2]
[405204091,1770904626056,502.09662769,0.00013699,2]
[405204092,1770904626343,500.0,0.00013699,2]
[405204093,1770904626379,501.10363565,0.00014247,2]
[405204094,1770904629359,502.96897141,0.00013699,2]
[405204095,1770904630455,500.0,0.00013273,2]
[405204096,1770904631366,500.0,0.00013273,2]
[405204097,1770904637263,299.77453238,0.00013699,2]
[405204098,1770904749866,479.50544734,0.00013699,2]
[405204099,1770904752164,500.0,0.00013699,2]
[405204100,1770904811339,500.0,0.00013699,2]
[405204101,1770904812151,500.0,0.00013699,2]
[405204102,1770904812215,500.0,0.00014247,2]
[405204103,1770904812558,516.06025722,0.00013699,2]
[405204107,1770904817080,287.71384729,0.00013699,2]
[405204108,1770904818496,500.0,0.00013699,2]
[405204109,1770904818973,662.85557129,0.00014247,2]
[405204110,1770904819020,500.0,0.00013699,2]
[405204111,1770904820266,164.53604888,0.00013699,2]
[405204112,1770904825160,500.0,0.00013699,2]
[405204113,1770904827542,2000.0,0.00030137,120]
[405204114,1770904828943,562.42100225,0.00013699,2]
[405204115,1770904874484,459.79582892,0.00013699,2]
[405204117,1770904879375,500.0,0.00013699,2]
[405204118,1770904879417,1000.83474784,0.00014247,2]
[405204119,1770904880731,496.59324571,0.00013273,2]
[405204120,1770904908216,1500.0,0.0002352,2]
[405204121,1770904921735,-281.72,0.0002356,10]
[405204122,1770904921776,-264.08682166,0.0002356,10]
[405204123,1770904928030,500.0,0.00013699,2]
[405204124,1770904928083,500.0,0.00014247,2]
[405204125,1770904929041,499.84489272,0.00013273,2]
[405204126,1770904929306,479.50544734,0.00013273,2]
[405204127,1770904930041,500.0,0.00013699,2]
[405204128,1770904930377,500.0,0.00013273,2]
[405204129,1770904930759,500.0,0.00013699,2]
[405204130,1770904931960,500.0,0.00013699,2]
[405204131,1770904932018,1000.0,0.00014247,2]
[405204132,1770904932074,500.80331725,0.00014795,2]
[405204133,1770904932139,500.0,0.00013699,2]
[405204134,1770904932374,500.0,0.00013273,2]
[405204135,1770904939628,461.32870613,0.00014247,2]
[405204136,1770905033602,4932.78,0.00030137,120]
[405204137,1770905048807,502.24877944,0.00013699,2]
[405204139,1770905110878,942.24164672,0.00014247,2]
[405204140,1770905110915,500.0,0.00013699,2]
[405204143,1770905115635,500.0,0.00013273,2]
[405204144,1770905115678,500.0,0.00013821,2]
[405204145,1770905125909,500.0,0.00013699,2]
[405204146,1770905130908,500.0,0.00013699,2]
[405204147,1770905164541,500.6396717,0.00013699,2]
[405204148,1770905166350,155.73611839,0.00016438,2]
[405204149,1770905172848,500.75494106,0.00013699,2]
[405204150,1770905224825,500.0,0.00013699,2]
[405204151,1770905225279,500.0,0.00013699,2]
[405204152,1770905226487,500.0,0.00013273,2]
[405204153,1770905226535,500.0,0.00013821,2]
[405204155,1770905230113,500.0,0.00013699,2]
[405204156,1770905230318,159.24130076,0.00013699,2]
[405204157,1770905230346,500.0,0.00013273,2]
[405204158,1770905230969,500.0,0.00013273,2]
[405204159,1770905230996,487.34649707,0.00013699,2]
[405204160,1770905231028,280.2323295,0.00013821,2]
[405204161,1770905231139,520.49455266,0.00013699,2]
[405204163,1770905338406,-300.0,0.00023561,2]